bitfinex-derivatives/quotes_ETHF0:USTF0_20250224
["timestamp","ask_amount","ask_price","bid_price","bid_amount"]
[1740370932476,1.1696,2714.0,2713.6,0.00552934]
[1740370932788,0.00552934,2714.1,2713.6,0.00552934]
[1740370933084,0.00552934,2714.1,2714.0,0.73697]
[1740370933590,0.00552934,2714.1,2714.0,1.90487]
[1740370934280,0.00552934,2714.1,2713.7,1.1634]
[1740370934482,0.74248934,2714.1,2713.8,0.73703]
[1740370934684,0.73698,2714.0,2713.7,1.90044]
[1740370934891,0.73706,2713.7,2713.6,0.00552934]
[1740370935184,1.94641,2713.9,2713.7,0.73705]
[1740370935386,1.2094,2713.9,2713.6,0.00552934]
[1740370935688,1.9464,2713.9,2713.7,0.73704]
[1740370935983,1.9464,2713.9,2713.6,0.00552934]
[1740370935984,1.2094,2713.9,2713.6,0.00552934]
[1740370936187,3.94486,2713.7,2713.6,0.00552934]
[1740370936789,3.94486,2713.7,2712.7,2.954]
[1740370936790,13.8515,2713.7,2712.7,2.954]
[1740370937082,3.2078,2713.3,2712.3,1.2195]
[1740370937281,1.174,2713.8,2712.4,0.73739]
[1740370937282,0.73727,2712.9,2712.4,0.73739]
[1740370937484,5.2063,2713.2,2711.5,3.2078]
[1740370937485,3.2078,2712.5,2711.5,3.2078]
[1740370937682,0.73758,2711.8,2711.3,0.7377]
[1740370937891,6.74636,2711.9,2711.4,0.73768]
[1740370938093,6.74636,2711.9,2711.2,3.2078]
[1740370938094,6.0088,2711.9,2711.3,0.00552934]
[1740370938390,3.2078,2711.6,2711.3,0.00552934]
[1740370938586,3.2078,2711.6,2711.4,0.73766]
[1740370938782,3.2078,2711.6,2711.3,0.00552934]
[1740370938977,3.2078,2711.6,2711.4,0.73766]
[1740370939284,3.2078,2711.6,2711.5,0.73765]
[1740370939688,3.94544,2711.6,2711.3,0.00552934]
[1740370940287,3.2078,2711.6,2711.3,0.74320934]
[1740370940486,6.0088,2711.6,2711.4,0.73767]
[1740370940784,6.0088,2711.6,2711.3,0.74322934]
[1740370941188,3.2078,2711.6,2711.5,0.73765]
[1740370941490,3.2078,2711.6,2711.3,0.74322934]
[1740370941690,3.2078,2711.6,2711.4,0.73766]
[1740370941885,3.2078,2711.6,2711.3,0.00552934]
[1740370942089,3.53856,2711.9,2711.4,0.73767]
[1740370942281,2.801,2711.9,2711.3,0.00552934]
[1740370942479,2.801,2711.9,2711.6,0.73761]
[1740370942685,2.801,2711.9,2711.3,0.00552934]
[1740370942886,2.801,2711.9,2711.7,0.7376]
[1740370943084,2.802,2711.9,2711.7,0.7376]
[1740370943285,2.802,2711.9,2711.6,0.73761]
[1740370943481,2.802,2711.9,2711.3,0.00552934]
[1740370943688,3.94548,2711.4,2711.3,0.00552934]
[1740370944387,3.2078,2711.4,2711.3,0.74323934]
[1740370944788,3.2078,2711.4,2711.3,0.00552934]
[1740370945086,3.2078,2711.4,2711.3,40.80552934]
[1740370945285,3.2078,2711.4,2711.3,0.00552934]
[1740370945594,3.2078,2711.4,2711.3,0.74323934]
[1740370945990,3.2078,2711.4,2711.3,0.00552934]
[1740370946488,3.2078,2711.4,2711.3,0.74323934]
[1740370947590,6.0098,2711.8,2711.3,0.00552934]
[1740370948095,0.73763,2711.6,2711.3,0.74321934]
[1740370948484,6.0098,2711.8,2711.3,0.00552934]
[1740370948787,6.74739,2711.8,2711.3,0.00552934]
[1740370948995,3.2078,2711.5,2711.3,0.00552934]
[1740370949199,0.73766,2711.5,2711.3,0.00552934]
[1740370949495,6.0098,2711.8,2711.3,0.00552934]
[1740370949496,0.73763,2711.6,2711.3,0.74322934]
[1740370949696,3.2078,2711.8,2711.3,0.00552934]
[1740370950096,0.73764,2711.6,2711.3,0.74322934]
[1740370950597,3.2078,2711.8,2711.3,0.00552934]
[1740370950797,0.7376,2711.7,2711.4,0.73767]
[1740370950997,3.2078,2711.8,2711.7,0.7376]
[1740370951296,2.4053,2712.2,2712.1,0.73749]
[1740370951594,0.00552934,2712.3,2712.2,0.73746]
[1740370951800,0.00552934,2712.3,2712.1,0.73748]
[1740370952093,0.74297934,2712.3,2712.0,0.7375]
[1740370952290,0.00552934,2712.3,2711.4,6.0088]
[1740370952493,1.21272934,2712.3,2711.4,6.0088]
[1740370952690,1.95017934,2712.3,2711.5,1.84414]
[1740370952895,3.2078,2712.1,2712.0,0.7375]
[1740370953600,3.2078,2712.1,2712.0,0.73752]
[1740370953801,3.2078,2712.1,2711.4,2.801]
[1740370954097,0.73752,2712.0,2711.4,2.801]
[1740370954302,0.73752,2712.0,2711.8,0.73756]
[1740370954496,3.2078,2712.1,2711.4,2.801]
[1740370954694,0.73753,2712.0,2711.8,0.73757]
[1740370954894,0.73752,2712.0,2711.8,0.73757]
[1740370955195,0.73758,2711.8,2711.5,0.73763]
[1740370955394,3.2078,2712.1,2711.6,0.73763]
[1740370955702,3.94537,2711.8,2711.5,0.73764]
[1740370956603,3.2078,2711.8,2711.6,0.73761]
[1740370956798,1.1941,2712.0,2711.4,3.2078]
[1740370956997,1.1941,2712.0,2711.8,0.73755]
[1740370957192,1.93162,2712.0,2711.7,0.73759]
[1740370957693,1.93162,2712.0,2711.3,0.00552934]
[1740370957893,1.1941,2712.0,2711.3,0.00552934]
[1740370958092,1.1941,2712.0,2711.9,0.73754]
[1740370958302,1.1941,2712.0,2711.8,0.73756]
[1740370958498,1.1941,2712.0,2711.9,0.73754]
[1740370958899,6.0088,2712.1,2712.0,0.73752]
[1740370959096,6.0088,2712.1,2711.3,0.00552934]
[1740370959797,6.0088,2712.1,2711.9,0.73754]
[1740370960094,6.7463,2712.1,2711.8,0.73755]
[1740370960301,6.0088,2712.1,2712.0,0.73752]
[1740370960498,6.0088,2712.1,2711.5,1.84414]
[1740370960902,6.0088,2712.1,2711.9,0.73752]
[1740370961405,6.0088,2712.1,2712.0,0.73752]
[1740370961592,6.0088,2712.1,2711.9,0.73752]
[1740370961799,3.2078,2712.1,2712.0,0.73752]
[1740370962503,3.9453,2712.1,2711.9,0.73753]
[1740370962693,3.2078,2712.1,2712.0,0.73752]
[1740370962899,3.2078,2712.1,2711.3,0.00552934]
[1740370963099,0.73756,2711.9,2711.3,0.00552934]
[1740370963298,3.2078,2712.0,2711.9,0.73754]
[1740370963810,3.2078,2712.0,2711.5,1.2286]
[1740370964105,0.73762,2711.7,2711.4,0.73767]
[1740370964407,2.283,2711.9,2711.3,3.21332934]
[1740370964612,0.73767,2711.5,2711.3,3.21332934]
[1740370964905,1.2024,2711.6,2711.3,3.21332934]
[1740370965208,0.73765,2711.5,2711.3,3.21332934]
[1740370965404,1.2024,2711.6,2711.3,3.21332934]
[1740370965706,1.2024,2711.6,2711.4,0.73768]
[1740370965904,1.2024,2711.6,2711.5,0.73765]
[1740370966105,1.1309,2711.9,2711.8,0.73757]
[1740370966308,3.2078,2712.0,2711.9,0.73754]
[1740370966501,3.2078,2712.0,2711.4,1.1197]
[1740370966700,3.2078,2712.0,2711.9,0.73754]
[1740370967305,3.2078,2712.0,2711.4,1.1197]
[1740370967505,0.73756,2711.9,2711.4,1.1197]
[1740370967708,3.94533,2712.0,2711.7,0.73758]
[1740370968406,3.2078,2712.0,2711.4,1.1197]
[1740370968701,3.94533,2712.0,2711.4,1.1197]
[1740370969101,3.94533,2712.0,2711.7,0.73758]
[1740370969302,3.94533,2712.0,2711.4,1.1197]
[1740370969502,3.94533,2712.0,2711.8,0.73757]
[1740370970003,3.94533,2712.0,2711.7,0.73758]
[1740370970306,3.94533,2712.0,2711.8,0.73757]
[1740370970906,3.2078,2712.0,2711.4,1.1197]
[1740370971113,3.94532,2712.0,2711.4,1.1197]
[1740370971503,0.73756,2711.9,2711.6,0.73761]
[1740370971704,3.2078,2712.0,2711.4,1.1197]
[1740370972009,4.3265,2712.0,2711.4,4.0737]
[1740370972207,0.7376,2711.8,2711.5,0.73765]
[1740370972407,4.3265,2712.0,2711.5,0.73764]
[1740370972601,4.3265,2712.0,2711.4,2.954]
[1740370972806,0.73756,2711.9,2711.6,0.73762]
[1740370973401,0.73756,2711.9,2711.4,2.954]
[1740370973610,4.3265,2712.0,2711.4,2.954]
[1740370973814,4.3265,2712.0,2711.8,0.73756]
[1740370974708,4.3265,2712.0,2711.4,2.954]
[1740370975212,4.3265,2712.0,2711.8,0.73756]
[1740370975705,3.2078,2712.0,2711.9,0.73754]
[1740370976604,3.2078,2712.0,2711.4,4.79815]
[1740370976800,1.1704,2712.1,2711.9,0.73754]
[1740370977007,3.2078,2712.0,2711.5,1.84414]
[1740370977206,3.2078,2712.0,2711.9,0.73754]
[1740370979110,3.2078,2712.0,2711.4,2.954]
[1740370979405,6.0068,2712.0,2711.9,0.73754]
[1740370979610,3.2078,2712.0,2711.3,0.00552934]
[1740370979809,3.94534,2712.0,2711.7,0.73759]
[1740370980010,3.2078,2712.0,2711.7,0.73758]
[1740370980204,0.73755,2711.9,2711.3,0.00552934]
[1740370980409,3.2078,2712.0,2711.3,3.21332934]
[1740370980611,0.73755,2711.9,2711.7,0.73759]
[1740370980800,3.2078,2712.0,2711.3,0.00552934]
[1740370981005,0.73768,2711.4,2711.3,0.00552934]
[1740370981403,3.94548,2711.4,2711.3,0.00552934]
[1740370981612,0.73784,2710.9,2710.4,4.4117]
[1740370981807,9.2078,2711.4,2710.7,0.73786]
[1740370981808,3.94561,2711.0,2710.7,0.73786]
[1740370982310,3.94561,2711.0,2710.6,0.73788]
[1740370982506,3.94561,2711.0,2710.4,4.4117]
[1740370982713,0.73783,2710.9,2710.5,0.00552934]
[1740370982911,1.96593,2710.9,2710.5,0.00552934]
[1740370983108,0.7379,2710.6,2710.5,0.00552934]
[1740370983315,6.0058,2710.7,2710.5,0.00552934]
[1740370983704,0.7379,2710.6,2710.5,0.00552934]
[1740370983911,0.738,2710.3,2709.8,0.7381]
[1740370984106,1.2281,2710.2,2709.7,0.29317679]
[1740370984307,1.2281,2710.2,2709.9,0.73807]
[1740370984505,3.2078,2710.4,2709.7,3.2078]
[1740370984817,1.1316,2710.5,2709.7,3.2078]
[1740370984818,1.2281,2711.0,2710.2,1.84503]
[1740370985010,0.00552934,2711.1,2710.6,3.2078]
[1740370985207,9.34e-06,2711.1,2711.0,0.73779]
[1740370985413,4.3373,2711.9,2711.8,0.73757]
[1740370985608,4.3373,2711.9,2711.4,3.2078]
[1740370985815,4.3373,2711.9,2711.5,40.8]
[1740370986123,4.3373,2711.9,2711.8,0.73757]
[1740370986911,3.2078,2711.9,2711.6,0.00552934]
[1740370987206,0.00552934,2712.1,2712.0,0.73752]
[1740370988519,0.00552934,2712.1,2711.9,0.73753]
[1740370988713,0.00552934,2712.1,2712.0,0.73752]
[1740370993717,0.00552934,2712.1,2711.7,1.1396]
[1740370993718,3.21332934,2712.1,2711.7,1.1396]
[1740370993918,0.00552934,2712.1,2712.0,0.73752]
[1740370995018,3.2078,2713.1,2712.0,12.0048]
[1740370995220,6.0048,2713.5,2713.3,0.73715]
[1740370995421,1.2358,2713.4,2713.2,0.73717]
[1740370995724,0.73724,2713.1,2712.7,0.73731]
[1740370996024,0.73724,2713.1,2712.4,3.2078]
[1740370996025,3.2078,2713.1,2712.9,0.73727]
[1740370996226,0.73728,2712.9,2712.6,0.74286934]
[1740370996618,1.2358,2712.8,2712.7,0.73733]
[1740370997128,3.2078,2713.1,2713.0,0.73725]
[1740370998231,3.2078,2713.1,2712.6,0.00552934]
[1740370998524,3.2078,2713.1,2712.7,0.73733]
[1740370998722,0.73725,2713.0,2712.7,0.73733]
[1740370998918,3.2078,2713.1,2712.6,0.00552934]
[1740370999125,3.2078,2713.1,2713.0,0.73725]
[1740370999523,3.2078,2713.1,2712.6,0.00552934]
[1740371000125,3.2078,2713.1,2713.0,0.73725]
[1740371001441,0.00552934,2713.2,2713.1,0.73722]
[1740371001940,0.74273934,2713.2,2712.7,3.2078]
[1740371002135,1.1193,2713.1,2712.7,3.2078]
[1740371002638,0.73728,2712.9,2712.7,3.94512]
[1740371002833,1.1193,2713.1,2712.6,0.00552934]
[1740371002834,0.73733,2712.7,2712.6,0.00552934]
[1740371003137,3.94513,2712.7,2712.6,0.00552934]
[1740371003340,6.0028,2712.7,2712.1,0.73748]
[1740371003533,1.85567,2712.6,2712.2,0.73744]
[1740371003931,1.85567,2712.6,2711.9,1.2395]
[1740371003932,1.181,2712.5,2712.1,0.73747]
[1740371004144,3.2078,2712.4,2712.2,0.73746]
[1740371004438,3.2078,2712.4,2712.0,0.00552934]
[1740371004740,3.2078,2712.4,2712.3,0.73744]
[1740371005237,1.181,2712.5,2712.4,0.73741]
[1740371005736,3.2078,2713.0,2712.3,3.2078]
[1740371005942,3.2078,2713.0,2712.9,0.73727]
[1740371006443,3.2078,2713.0,2712.8,0.73728]
[1740371006744,3.2078,2713.0,2712.3,3.2078]
[1740371007339,3.2078,2713.0,2712.9,0.73727]
[1740371008739,0.00552934,2713.2,2713.1,0.73722]
[1740371012342,1.205,2714.1,2713.1,3.53122]
[1740371012343,3.2078,2713.8,2713.1,3.53122]
[1740371012646,3.2078,2713.8,2713.2,1.1785]
[1740371013147,0.73728,2712.9,2712.6,0.73733]
[1740371013348,3.2078,2713.0,2712.4,3.2078]
[1740371013552,1.1182,2712.9,2712.6,0.73735]
[1740371013846,3.2078,2712.7,2712.2,2.954]
[1740371014246,0.73744,2712.3,2712.0,0.74302934]
[1740371014445,3.94523,2712.4,2712.0,0.74302934]
[1740371014635,1.1182,2712.3,2712.0,0.74302934]
[1740371015243,1.1182,2712.3,2712.2,0.73746]
[1740371015748,1.1182,2712.3,2712.0,0.00552934]
[1740371015749,3.2078,2712.4,2712.3,0.73744]
[1740371015944,6.0018,2712.6,2712.0,0.00552934]
[1740371016242,4.4371,2712.3,2712.0,0.74302934]
[1740371016454,0.73749,2712.1,2712.0,0.00552934]
[1740371016746,3.53149,2712.1,2712.0,0.00552934]
[1740371017342,0.73766,2711.5,2711.1,0.73774]
[1740371017546,3.2078,2711.5,2710.8,1.2146]
[1740371017748,3.2078,2711.5,2711.1,0.73775]
[1740371017749,3.94547,2711.5,2711.1,0.73775]
[1740371018046,1.2293,2711.4,2710.8,42.0146]
[1740371018247,1.2293,2711.4,2710.9,3.2078]
[1740371018449,1.23482934,2711.4,2710.8,42.02012934]
[1740371018648,1.23482934,2711.4,2711.1,0.73775]
[1740371018843,1.23482934,2711.4,2711.3,0.73771]
[1740371019041,1.23482934,2711.4,2710.9,3.2078]
[1740371019042,0.00552934,2711.4,2710.9,3.2078]
[1740371019241,0.00552934,2711.4,2711.3,0.73771]
[1740371019437,0.00552934,2711.4,2711.1,0.73776]
[1740371019642,0.00552934,2711.4,2711.1,0.73775]
[1740371019844,0.00552934,2711.4,2710.8,42.02012934]
[1740371020044,0.00552934,2711.4,2711.3,0.73771]
[1740371020648,0.00552934,2711.4,2711.2,0.73773]
[1740371020843,0.00552934,2711.4,2710.9,3.2078]
[1740371020844,0.00552934,2711.4,2711.0,0.73779]
[1740371021441,0.00552934,2711.4,2710.9,3.2078]
[1740371021845,0.00552934,2711.4,2710.8,1.22012934]
[1740371021846,3.2078,2711.2,2710.8,1.22012934]
[1740371022046,0.73782,2710.9,2710.8,0.00552934]
[1740371022250,3.2078,2710.9,2710.1,0.28690856]
[1740371022552,3.2078,2710.9,2709.8,2.954]
[1740371022553,0.73795,2710.4,2710.0,0.73805]
[1740371022852,0.73795,2710.4,2710.1,0.73803]
[1740371023052,1.1374,2710.5,2710.3,0.73798]
[1740371023252,1.1374,2710.5,2710.4,0.73795]
[1740371023452,3.2078,2710.6,2709.9,40.8]
[1740371023851,0.73794,2710.5,2710.2,0.73801]
[1740371024151,4.3452,2710.6,2710.3,0.73796]
[1740371024345,4.3452,2710.6,2709.9,40.8]
[1740371024346,0.73794,2710.5,2710.1,0.73801]
[1740371024543,4.3452,2710.6,2710.3,0.73797]
[1740371024748,4.3452,2710.6,2709.9,40.8]
[1740371025045,4.3452,2710.6,2709.9,44.0078]
[1740371025252,4.3452,2710.6,2710.4,0.73795]
[1740371025653,4.3452,2710.6,2710.5,0.73793]
[1740371025953,3.2078,2710.6,2710.5,0.73793]
[1740371026547,3.2078,2710.6,2710.5,41.53793]
[1740371027147,3.2078,2710.6,2710.5,40.8]
[1740371027351,3.9457,2710.6,2710.3,0.73796]
[1740371027653,3.2078,2710.6,2710.4,0.73794]
[1740371027953,3.2078,2710.6,2710.4,41.53794]
[1740371028449,3.2078,2710.6,2710.5,0.73793]
[1740371028851,6.0018,2711.0,2710.4,40.8]
[1740371029045,6.0018,2711.0,2710.9,0.73782]
[1740371029255,3.9582,2711.2,2710.5,1.1193]
[1740371029456,0.73779,2711.1,2710.7,0.73785]
[1740371029643,0.73779,2711.1,2710.5,1.1193]
[1740371029848,1.1642,2711.2,2710.5,1.1193]
[1740371030048,3.2078,2710.9,2710.5,1.1193]
[1740371030248,0.7379,2710.7,2710.5,1.1193]
[1740371030445,3.2078,2710.9,2710.5,1.1193]
[1740371030645,0.73785,2710.8,2710.5,0.73792]
[1740371031251,0.73787,2710.7,2710.4,0.73794]
[1740371031559,0.73786,2710.8,2710.4,0.73793]
[1740371031757,0.73786,2710.8,2710.5,0.73793]
[1740371032055,3.2078,2710.9,2710.1,4.0743]
[1740371032362,3.2078,2710.9,2710.1,1.1203]
[1740371032656,0.73792,2710.6,2710.1,41.9203]
[1740371032860,0.73792,2710.6,2710.3,0.73797]
[1740371033154,3.2078,2710.6,2709.7,0.28815423]
[1740371033359,3.2078,2710.3,2709.7,0.28815423]
[1740371033557,3.2078,2710.3,2709.6,1.205]
[1740371033756,0.73802,2710.2,2709.9,0.73807]
[1740371034058,3.2078,2710.3,2710.1,0.73801]
[1740371034653,3.2078,2710.3,2709.7,0.29228717]
[1740371034859,3.9458,2710.3,2709.9,0.73806]
[1740371035061,3.9458,2710.3,2710.0,0.73806]
[1740371035453,0.7381,2709.9,2709.7,0.29652202]
[1740371035648,0.73807,2710.0,2709.7,0.73814]
[1740371035854,0.73805,2710.1,2709.8,0.7381]
[1740371036051,0.73809,2710.0,2709.7,0.73814]
[1740371036259,0.73809,2710.0,2708.9,0.73835]
[1740371036260,0.73825,2709.3,2708.9,0.73835]
[1740371036449,3.2078,2709.5,2708.7,1.1437]
[1740371036654,3.95153934,2709.5,2709.1,0.7383]
[1740371036856,3.95153934,2709.5,2708.7,41.9437]
[1740371036857,3.21332934,2709.5,2709.3,0.73825]
[1740371037160,3.21332934,2709.5,2708.7,41.9437]
[1740371037360,3.21332934,2709.5,2709.2,0.83827]
[1740371037956,3.21332934,2709.5,2709.4,0.73822]
[1740371038260,3.21332934,2709.5,2709.2,0.83827]
[1740371038460,3.21332934,2709.5,2709.3,0.73824]
[1740371038660,3.21332934,2709.5,2709.2,0.1]
[1740371038862,0.00552934,2709.5,2709.4,0.73822]
[1740371039762,0.00552934,2709.5,2709.3,1.1437]
[1740371039970,0.00552934,2709.5,2709.2,3.3078]
[1740371040160,0.00552934,2709.5,2709.4,0.73822]
[1740371040366,0.00552934,2709.5,2709.3,0.73823]
[1740371040663,0.00552934,2709.5,2709.4,0.73822]
[1740371041061,6.0018,2710.1,2709.4,3.2078]
[1740371041266,6.0018,2710.1,2709.9,0.73808]
[1740371041464,3.2078,2710.1,2710.0,0.73806]
[1740371041662,3.2078,2710.1,2709.9,0.73808]
[1740371042267,3.2078,2710.1,2709.7,0.00552934]
[1740371042467,3.2078,2710.1,2710.0,0.73806]
[1740371043969,0.00552934,2710.3,2709.8,2.954]
[1740371044270,6.0018,2710.6,2709.8,2.954]
[1740371044464,6.0018,2710.6,2710.4,0.73795]
[1740371044771,3.2078,2710.6,2710.5,0.73793]
[1740371047576,0.00552934,2710.8,2710.4,3.2078]
[1740371047771,0.00552934,2710.8,2710.7,0.73787]
[1740371050567,1.1564,2711.7,2710.7,9.2078]
[1740371050767,1.1564,2711.7,2710.5,2.793]
[1740371050768,1.1564,2711.7,2711.6,0.73763]
[1740371051475,1.1388,2712.3,2711.2,4.4465]
[1740371051671,5.0843,2712.3,2712.2,0.73746]
[1740371052077,2.793,2712.3,2712.2,0.73746]
[1740371052273,3.2078,2712.4,2712.3,0.73744]
[1740371052580,0.00552934,2712.5,2712.4,0.73741]
[1740371052771,0.00552934,2712.5,2712.4,3.94521]
[1740371052975,0.00552934,2712.5,2712.4,0.73741]
[1740371053373,0.00552934,2712.5,2712.4,3.94521]
[1740371054779,0.00552934,2712.5,2712.4,0.73741]
[1740371054974,2.41951,2713.2,2713.1,0.73722]
[1740371055179,1.1183,2713.7,2712.9,2.792]
[1740371055377,1.1183,2713.7,2713.4,0.73712]
[1740371055578,1.1183,2713.7,2713.6,0.73708]
[1740371055779,3.2078,2713.9,2713.1,3.2078]
[1740371056082,3.2078,2713.6,2713.2,0.00552934]
[1740371056282,0.00552934,2713.8,2713.2,0.00552934]
[1740371056484,0.00552934,2713.8,2713.7,0.73706]
[1740371057288,0.00552934,2713.8,2713.2,1.17522934]
[1740371057489,0.74255934,2713.8,2713.4,0.73712]
[1740371058086,0.74255934,2713.8,2713.5,0.73711]
[1740371058387,0.00552934,2713.8,2713.7,0.73706]
[1740371058686,0.00552934,2713.8,2713.2,1.17522934]
[1740371058884,0.00552934,2713.8,2713.6,0.73707]
[1740371059184,0.00552934,2713.8,2713.5,0.73709]
[1740371059385,0.00552934,2713.8,2713.5,0.7371]
[1740371059586,0.00552934,2713.8,2713.2,1.17522934]
[1740371059887,3.2078,2713.5,2713.2,0.00552934]
[1740371060079,0.00552934,2713.8,2713.2,0.00552934]
[1740371060080,3.94496,2713.3,2713.2,0.00552934]
[1740371060480,11.18026,2713.3,2713.2,0.00552934]
[1740371060783,4.4431,2713.3,2713.2,0.00552934]
[1740371060988,4.4431,2713.3,2713.2,0.74271934]
[1740371061181,2.3652,2713.4,2713.3,0.73716]
[1740371061487,1.1618,2713.4,2713.2,0.74270934]
[1740371061685,1.1618,2713.4,2713.2,0.00552934]
[1740371062290,0.73716,2713.3,2713.2,0.00552934]
[1740371062585,11.6049,2713.4,2712.6,0.73734]
[1740371062886,3.2078,2713.1,2712.6,0.73735]
[1740371063090,3.52627,2713.0,2712.6,0.73735]
[1740371063280,0.73728,2712.9,2712.6,0.73735]
[1740371063474,3.52627,2713.0,2712.6,0.73735]
[1740371064081,0.73727,2712.9,2712.6,0.73735]
[1740371064278,2.789,2713.0,2712.5,0.00552934]
[1740371064485,0.73735,2712.6,2712.5,0.00552934]
[1740371064788,0.73746,2712.3,2711.9,0.73753]
[1740371065090,5.9968,2712.3,2712.0,0.73751]
[1740371065280,1.1923,2712.5,2711.6,3.2078]
[1740371065485,2.789,2712.4,2711.9,3.2078]
[1740371065681,1.1923,2712.5,2712.4,0.73741]
[1740371065883,2.789,2712.6,2712.2,3.2078]
[1740371066087,0.00552934,2712.7,2712.6,0.73735]
[1740371069387,9.34e-06,2712.7,2712.6,0.73735]
[1740371069589,9.34e-06,2712.7,2712.6,1.89695]
[1740371069888,3.2078,2713.4,2713.3,0.73716]
[1740371070886,4.4033,2713.9,2713.1,40.8]
[1740371071092,1.1955,2713.9,2713.8,0.73703]
[1740371071589,0.00552934,2714.1,2713.6,0.28980511]
[1740371071790,0.00552934,2714.1,2713.8,0.73702]
[1740371071995,0.00552934,2714.1,2713.9,0.737]
[1740371073291,3.2078,2715.1,2714.3,1.84223]
[1740371073497,5.4898,2715.1,2715.0,0.7367]
[1740371073797,5.4898,2715.1,2714.9,0.73671]
[1740371074090,5.4898,2715.1,2714.4,3.2078]
[1740371074291,5.4898,2715.1,2714.7,0.00552934]
[1740371075095,8.2768,2715.1,2714.7,0.00552934]
[1740371075298,0.73675,2714.9,2714.7,0.00552934]
[1740371075500,8.2768,2715.1,2714.7,0.00552934]
[1740371075694,9.01349,2715.1,2714.8,0.73675]
[1740371075899,8.2768,2715.1,2714.9,0.73671]
[1740371076400,9.01348,2715.1,2714.7,0.74229934]
[1740371076897,8.2768,2715.1,2714.8,0.73674]
[1740371077093,0.73672,2715.0,2714.7,0.00552934]
[1740371077599,9.01349,2715.1,2714.8,0.73675]
[1740371077996,0.73673,2715.0,2714.7,0.00552934]
[1740371078192,9.01349,2715.1,2714.8,0.73674]
[1740371078392,9.01349,2715.1,2714.7,0.00552934]
[1740371078598,9.01349,2715.1,2714.8,0.73675]
[1740371078999,8.2768,2715.1,2714.7,0.00552934]
[1740371079197,5.4898,2715.1,2715.0,0.7367]
[1740371079391,2.282,2715.1,2715.0,0.7367]
[1740371080600,2.282,2715.1,2714.9,0.73672]
[1740371080995,2.282,2715.1,2714.7,0.00552934]
[1740371081201,2.282,2715.1,2715.0,0.7367]
[1740371081406,2.282,2715.1,2714.8,0.73675]
[1740371081407,3.01869,2715.1,2714.8,0.73675]
[1740371081699,3.01869,2715.1,2714.7,0.00552934]
[1740371081700,2.282,2715.1,2714.9,0.73673]
[1740371081899,3.01869,2715.1,2714.8,0.73675]
[1740371082104,2.282,2715.1,2714.7,0.00552934]
[1740371082299,2.282,2715.1,2715.0,0.7367]
[1740371082494,3.52916934,2715.3,2714.7,0.00552934]
[1740371082495,0.00552934,2715.3,2714.7,0.00552934]
[1740371082701,0.00552934,2715.3,2715.2,0.73665]
[1740371087512,0.00552934,2715.3,2714.7,1.22642934]
[1740371087513,0.00552934,2715.3,2715.1,0.73666]
[1740371087821,0.73666,2715.2,2715.0,0.7367]
[1740371088222,1.20022934,2715.3,2714.7,1.22642934]
[1740371088418,3.2078,2715.1,2714.7,0.00552934]
[1740371088717,0.73674,2714.9,2714.7,0.00552934]
[1740371089220,0.73676,2714.8,2714.7,0.00552934]
[1740371090216,0.73676,2714.8,2714.0,4.62743]
[1740371090217,6.0,2714.8,2713.4,2.954]
[1740371090414,3.2078,2714.0,2713.4,1.1283]
[1740371090611,0.73701,2713.9,2713.6,0.73707]
[1740371091023,3.2078,2714.0,2713.4,1.1283]
[1740371091319,3.2078,2714.0,2713.4,1.13382934]
[1740371091515,3.21332934,2714.0,2713.4,1.13382934]
[1740371091718,0.00552934,2714.0,2713.9,0.737]
[1740371092118,0.00552934,2714.0,2713.9,3.9448]
[1740371092314,3.2078,2715.4,2713.9,14.06959564]
[1740371092515,3.2078,2715.4,2714.3,3.2078]
[1740371092812,0.73667,2715.2,2714.8,0.73674]
[1740371093018,3.2078,2715.4,2714.4,44.7084]
[1740371093320,0.7367,2715.1,2714.7,0.73677]
[1740371093526,0.7367,2715.1,2714.6,0.00552934]
[1740371093723,0.00552934,2715.2,2714.6,3.21332934]
[1740371093925,0.00552934,2715.2,2715.1,0.73668]
[1740371094424,0.00552934,2715.2,2715.0,0.73669]
[1740371094625,0.00552934,2715.2,2715.1,0.73668]
[1740371095027,0.00552934,2715.2,2715.0,0.73668]
[1740371095327,0.74219934,2715.2,2714.6,3.21332934]
[1740371095523,0.00552934,2715.2,2714.8,0.73673]
[1740371095831,0.74218934,2715.2,2714.8,0.73673]
[1740371096625,0.74218934,2715.2,2714.6,3.21332934]
[1740371096821,0.00552934,2715.2,2714.6,3.21332934]
[1740371097125,0.00552934,2715.2,2715.1,0.73668]
[1740371098531,0.00552934,2715.2,2714.9,3.2078]
[1740371098931,0.74218934,2715.2,2714.9,3.94451]
[1740371099231,0.00552934,2715.2,2715.0,0.7367]
[1740371099829,0.73669,2715.1,2714.8,0.73675]
[1740371100324,0.00552934,2715.2,2714.6,0.00552934]
[1740371100523,0.73676,2714.8,2714.6,0.00552934]
[1740371100730,0.73675,2714.9,2714.6,0.74232934]
[1740371100922,0.73675,2714.9,2714.6,0.74231934]
[1740371101223,7.1834,2715.1,2714.6,0.00552934]
[1740371101528,0.73678,2714.7,2714.6,0.00552934]
[1740371101730,0.73677,2714.8,2714.6,0.00552934]
[1740371102627,0.73675,2714.9,2714.6,0.74232934]
[1740371102829,1.1965,2715.0,2714.6,0.00552934]
[1740371103030,0.73677,2714.8,2714.6,0.00552934]
[1740371103729,0.73677,2714.8,2714.1,43.754]
[1740371103730,0.73678,2714.7,2713.4,6.1618]
[1740371103926,3.2078,2714.0,2713.4,4.3879]
[1740371104228,3.2078,2714.7,2713.4,4.3879]
[1740371104433,2.783,2714.6,2714.4,0.73685]
[1740371104932,3.2078,2714.7,2714.2,0.00552934]
[1740371105138,3.94459,2714.7,2714.3,0.73687]